Cogmind - Beta 13 @@@ ROGUE MODE // 2024.04.19 @ 02:08:27 Player: lexi =3 Result: Destroyed by G-67 Veteran with Field Laser Performance ------------- Evolutions (6) 3000 Regions Visited (15) 3000 Robots Destroyed (75) 375 Value Destroyed (2765) 2765 Prototype IDs (7) 140 Alien Tech Used (0) 0 Bonus (1974) 1974 TOTAL SCORE: 11254 Bonus ------- High Alert Combat Kills 125 Follower Combat Kills 1578 Aligned with FarCom 300 Friendly Fire -29 Cogmind --------- Core Integrity 0/1150 Matter 300/300 Energy 100/100 System Corruption 3% Temperature Cool (21) Movement Core (50) Location -4/Factory Parts ------- > --- POWER (2) -------- (None) > --- PROPULSION (6) --- (None) > --- UTILITY (8) ------ Improved Hacking Suite > --- WEAPON (3) ------- (None) > --- INVENTORY (5) ---- Antimatter Reactor Myomer Leg AWS/Gauss Peak State ------------ > --- POWER ------------ Reinforced Fission Core Antimatter Reactor > --- PROPULSION ------- Heavy Treads Heavy Treads Carbon-fiber Leg Carbon-fiber Leg > --- UTILITY ---------- Advanced Heat Sink Improved Coolant Injector Large Storage Unit Hardened Light Armor Plating Improved Hacking Suite Advanced Hacking Suite > --- WEAPON ----------- Heavy Laser Enhanced Quantum Rifle Advanced Plasma Cannon > --- INVENTORY -------- Light Angular Momentum Engine Antimatter Reactor Myomer Leg Improved Cooling System Experimental Sensor Array Improved Weapon Shielding Improved Medium Armor Plating Heavy Laser Variable Charge Gun Quantum Rifle Enhanced Nova Cannon AWS/Gauss [Rating: 95] Favorites ----------- Power Light Nuclear Core Engine Light Angular Momentum Engine Power Core Light Nuclear Core Reactor Antimatter Reactor Propulsion Aluminum Leg Treads Improved Medium Treads Leg Aluminum Leg Utility Improved Targeting Computer Device Improved Coolant Injector Storage Large Storage Unit Processor Improved Targeting Computer Hackware Improved Hacking Suite Protection Hardened Light Armor Plating Weapon Heavy Laser Energy Gun Heavy Laser Energy Cannon Advanced Plasma Cannon Ballistic Gun AWS/Gauss Launcher Rocket Launcher Build | -11 -10 -9 -9 -9 -8 -8 -7 -6 -6 -5 -5 -5 -5 -5 -4 ------- Run | Yrd Mat Mat Min Exi Min Mat Fac Fac Ext Fac Was Fac Upp Upp Fac Slots Evolved 12 | . . 2 . . . 2 2 2 . 2 . . . . 2 Power 1 | . . . . . . . 1 . . . . . . . . Propulsion 4 | . . 2 . . . . . . . 1 . . . . 1 Utility 6 | . . . . . . 1 1 2 . 1 . . . . 1 Weapon 1 | . . . . . . 1 . . . . . . . . . Parts Attached 98 | 6 . 27 6 4 1 3 2 10 20 3 4 2 . 1 9 Power 11 | 1 . 3 1 . . . . 1 3 . 1 1 . . . Engine 5 | 1 . 3 . . . . . . 1 . . . . . . Core 5 | . . . 1 . . . . 1 2 . . 1 . . . Reactor 1 | . . . . . . . . . . . 1 . . . . Propulsion 29 | 2 . 12 2 1 . . . 3 6 . 1 . . 1 1 Treads 11 | . . 6 . . . . . . 3 . 1 . . 1 . Leg 18 | 2 . 6 2 1 . . . 3 3 . . . . . 1 Wheel . | . . . . . . . . . . . . . . . . Hover . | . . . . . . . . . . . . . . . . Flight . | . . . . . . . . . . . . . . . . Utility 26 | 1 . 5 1 1 1 1 1 3 4 2 1 1 . . 4 Device 7 | . . 2 1 1 . . . . 1 1 . . . . 1 Storage 4 | 1 . 3 . . . . . . . . . . . . . Processor 3 | . . . . . . . 1 . 2 . . . . . . Hackware 3 | . . . . . . . . 2 . . . 1 . . . Protection 9 | . . . . . 1 1 . 1 1 1 1 . . . 3 Artifact . | . . . . . . . . . . . . . . . . Weapon 32 | 2 . 7 2 2 . 2 1 3 7 1 1 . . . 4 Energy Gun 15 | . . 1 1 . . 1 1 3 4 . 1 . . . 3 Energy Cannon 2 | . . . . . . . . . . 1 . . . . 1 Ballistic Gun 14 | 2 . 6 . 2 . 1 . . 3 . . . . . . Ballistic Cannon . | . . . . . . . . . . . . . . . . Launcher 1 | . . . 1 . . . . . . . . . . . . Special Weapon . | . . . . . . . . . . . . . . . . Impact Weapon . | . . . . . . . . . . . . . . . . Slashing Weapon . | . . . . . . . . . . . . . . . . Piercing Weapon . | . . . . . . . . . . . . . . . . Special Melee Weapon . | . . . . . . . . . . . . . . . . Unidentified Prototypes 7 | . . 2 1 2 . . 1 1 . . . . . . . Parts Lost 50 | . . 7 5 . . . . . 19 . . . . 1 18 Power 6 | . . 1 1 . . . . . 2 . . . . . 2 Propulsion 18 | . . 4 3 . . . . . 6 . . . . 1 4 Utility 14 | . . 1 . . . . . . 5 . . . . . 8 Weapon 12 | . . 1 1 . . . . . 6 . . . . . 4 Highest Loss Streak 16 | . . 3 4 . . . . . 10 . . . . 1 16 To Critical Strikes . | . . . . . . . . . . . . . . . . Average Slot Usage (%) 81 | . 85 79 78 80 88 72 69 71 87 65 86 94 94 92 72 Engine 2 | . 14 10 8 . . . . . . 5 7 4 . . . Core 5 | . . . 2 11 11 9 7 7 10 . . . 5 5 4 Reactor 1 | . . . . . . . . . . . 2 5 5 5 4 Treads 5 | . . 16 4 . . . . . . 5 7 11 11 10 8 Leg 20 | . 28 15 23 40 44 36 30 26 22 11 11 11 11 9 8 Device 3 | . . 3 7 3 . . . . 1 4 5 5 5 5 4 Storage 7 | . 14 11 11 11 11 9 7 6 6 5 5 5 5 5 4 Processor 5 | . . . . . . . 7 6 7 11 11 11 11 11 4 Hackware 5 | . . . . . . . . 3 12 5 5 7 11 11 9 Protection 5 | . . . . . 11 9 7 7 9 1 6 8 5 5 7 Energy Gun 6 | . . 3 6 3 . . . 3 7 11 11 11 11 11 8 Energy Cannon 1 | . . . . . . . . . . 1 5 5 5 5 4 Ballistic Gun 5 | . 28 17 8 7 11 9 7 6 5 . . . . . . Naked Turns . | . . . . . . . . . . . . . . . . Heaviest Build 87 | 10 10 34 37 35 43 48 43 60 60 52 75 82 82 82 87 Greatest Support 140 | 20 20 80 33 43 43 43 43 65 68 30 100 100 100 140 140 Greatest Overweight (x) 2 | 1 . 2 2 1 . 1 . 1 2 1 2 . . . 1 Average Overweight (x) . | . . . . . . . . . . 1 . . . . . Largest Inventory Capacity 15 | 8 8 15 15 15 15 15 15 15 15 15 15 15 15 15 15 Average Capacity 14 | 7 8 12 15 15 15 15 15 15 15 15 15 15 15 15 13 Most Carried 15 | 1 3 15 15 15 15 15 14 15 14 7 13 15 15 15 13 Average Carried 12 | . 1 8 13 14 14 14 14 14 11 6 9 14 15 14 10 Final Capacity 15 | 8 8 15 15 15 15 15 15 15 15 15 15 15 15 15 5 Final Carried 15 | 1 3 12 13 15 14 15 14 13 6 5 13 15 15 13 4 Class Distribution -------------------- 37% | Scavenger-Mutant 30% | Scavenger-Gunner 10% | Mutant 6% | Hacker-Tank 4% | Scavenger-Skirmisher 4% | Tank Dominant Class ---------------- Mutant | -10/Materials Scavenger-Mutant | -9/Materials Scavenger-Mutant | -9/Mines Scavenger-Mutant | -9/Exiles Scavenger-Mutant | -8/Mines Scavenger-Mutant | -8/Materials Scavenger-Mutant | -7/Factory Scavenger-Mutant | -6/Factory Hacker-Tank | -6/Extension Scavenger-Mutant | -5/Factory Scavenger-Gunner | -5/Waste Scavenger-Gunner | -5/Factory Scavenger-Gunner | -5/Upper Caves Scavenger-Gunner | -5/Upper Caves Scavenger-Tank | -4/Factory Resources | -11 -10 -9 -9 -9 -8 -8 -7 -6 -6 -5 -5 -5 -5 -5 -4 ----------- Run | Yrd Mat Mat Min Exi Min Mat Fac Fac Ext Fac Was Fac Upp Upp Fac Matter Collected 1808 | 220 74 466 294 . . . . 186 287 . 205 10 17 19 30 Remotely . | . . . . . . . . . . . . . . . . Salvage Created 3273 | . 85 1108 209 . . 94 . 274 692 . . 159 258 205 189 Parts 175 | . 4 80 5 . . 2 . 17 38 . . . 12 5 12 Haulers Intercepted 3 | . . 1 . . . . . . . . . 1 . 1 . Recyclers Shooed 4 | . . 1 . . . . . . 2 . . 1 . . . Parts Field Recycled . | . . . . . . . . . . . . . . . . Retrieved Matter . | . . . . . . . . . . . . . . . . Parts Self-Destructed 50 | . . . . . . . . . . . . . 35 15 . Prevented . | . . . . . . . . . . . . . . . . Kills | -11 -10 -9 -9 -9 -8 -8 -7 -6 -6 -5 -5 -5 -5 -5 -4 ------- Run | Yrd Mat Mat Min Exi Min Mat Fac Fac Ext Fac Was Fac Upp Upp Fac Combat Hostiles Destroyed 72 | . 3 26 15 . . 2 . 7 9 . . 1 4 2 3 Guns 58 | . 3 25 6 . . 2 . 7 9 . . . 4 . 2 Cannons 4 | . . . . . . . . . . . . 1 . 2 1 AOE 10 | . . 1 9 . . . . . . . . . . . . Classes Destroyed 13 | . 2 5 2 . . . . 2 2 . . . . . . Worker 1 | . . . . . . . . 1 . . . . . . . Builder 4 | . . 1 . . . . . . 3 . . . . . . Tunneler 1 | . . . . . . . . . 1 . . . . . . Hauler 3 | . . 1 . . . . . . . . . 1 . 1 . Watcher 5 | . . 2 . . . . . . 2 . . . . . 1 Swarmer 14 | . 2 7 . . . . . 4 . . . . . . 1 Grunt 25 | . 1 9 3 . . 2 . . 4 . . 1 2 2 1 Brawler 1 | . . . 1 . . . . . . . . . . . . Duelist 1 | . . 1 . . . . . . . . . . . . . Sentry 12 | . . 9 . . . . . 1 2 . . . . . . Programmer 5 | . . . . . . . . 2 1 . . . 1 . 1 Behemoth 3 | . . . . . . . . . 2 . . . 1 . . Assembled 11 | . . . 11 . . . . . . . . . . . . Best Kill Streak 10 | . 2 4 10 . . 2 . 4 3 . . 2 2 3 2 Combat Bots Only 10 | . 2 4 10 . . 2 . 4 3 . . 1 2 2 1 Max Kills in Single Turn 6 | . 1 2 6 . . 1 . 2 1 . . 1 1 1 1 Gunslinging . | . . . . . . . . . . . . . . . . Exploded 6 | . . 1 6 . . . . . . . . . . . . Melee . | . . . . . . . . . . . . . . . . Uniques/NPCs Destroyed . | . . . . . . . . . . . . . . . . Combat | -11 -10 -9 -9 -9 -8 -8 -7 -6 -6 -5 -5 -5 -5 -5 -4 -------- Run | Yrd Mat Mat Min Exi Min Mat Fac Fac Ext Fac Was Fac Upp Upp Fac Hostile Shots Fired 780 | . 36 133 81 . . 2 . 17 278 . . . 20 6 207 Missed 244 | . 12 37 22 . . . . 5 96 . . . 5 3 64 Damage Taken 9572 | . 234 1142 1046 . . 28 . 135 3291 . . 68 392 83 3153 Core 2179 | . 78 155 207 . . . . 19 530 . . 8 16 . 1166 Absorbed by Shields . | . . . . . . . . . . . . . . . . Redirected to Shielding 105 | . . . . . . . . . 40 . . . . . 65 Regen/Repaired (Parts) 185 | . . . . . . . . . . . 133 16 36 . . Core Remaining (%) 72 | 100 68 . . . 9 100 100 . 35 . . . . 97 . Volleys Fired 216 | . 17 72 24 . . 1 . 5 70 . . 2 11 3 11 Largest 3 | . 2 2 2 . . 1 . 1 3 . . 3 3 3 3 Hottest 261 | . 40 88 75 . . 75 . 75 165 . . 232 232 232 261 Shots Fired 450 | . 34 144 35 . . 9 . 22 138 . . 5 27 9 27 Gun 430 | . 34 144 31 . . 9 . 22 138 . . 4 24 6 18 Cannon 16 | . . . . . . . . . . . . 1 3 3 9 Launcher 4 | . . . 4 . . . . . . . . . . . . Special . | . . . . . . . . . . . . . . . . Kinetic 256 | . 34 115 22 . . 8 . 15 62 . . . . . . Thermal 190 | . . 29 9 . . 1 . 7 76 . . 5 27 9 27 Explosive 4 | . . . 4 . . . . . . . . . . . . Electromagnetic . | . . . . . . . . . . . . . . . . Robot Hit Streak 18 | . 9 16 12 . . 6 . 14 18 . . 4 6 4 5 Robot Miss Streak 6 | . 6 3 2 . . 4 . 1 4 . . 1 3 1 1 Penetration Max . | . . . . . . . . . . . . . . . . Secondary Targets 4 | . . 3 1 . . . . . . . . . . . . Max Gunslinging Chain 1 | . . 1 1 . . . . . . . . . . . . Autonomous 33 | . . . . . . 8 . 15 10 . . . . . . Shots Hit Robots 323 | . 20 103 22 . . 6 . 18 114 . . 4 16 7 13 Core Hits 172 | . 7 46 22 . . 5 . 10 49 . . 4 8 5 16 Critical Kills 1 | . . . . . . . . 1 . . . . . . . Critical Parts Destroyed . | . . . . . . . . . . . . . . . . Critical Strikes 7 | . . 1 1 . . 1 . 2 2 . . . . . . Burn 6 | . . 1 1 . . 1 . 1 2 . . . . . . Destroy 1 | . . . . . . . . 1 . . . . . . . Melee Attacks . | . . . . . . . . . . . . . . . . Impact . | . . . . . . . . . . . . . . . . Slashing . | . . . . . . . . . . . . . . . . Piercing . | . . . . . . . . . . . . . . . . Sneak Attacks . | . . . . . . . . . . . . . . . . Combat Hostiles . | . . . . . . . . . . . . . . . . Follow-up Attacks . | . . . . . . . . . . . . . . . . Damage Inflicted 7308 | . 164 1691 873 . 11 152 . 548 2639 . . 122 487 196 425 Guns 6326 | . 164 1570 390 . . 152 . 548 2639 . . 81 410 131 241 Cannons 300 | . . . . . . . . . . . . 34 77 65 124 Explosions 616 | . . 121 483 . . . . . . . . . . . 12 Melee . | . . . . . . . . . . . . . . . . Ramming 66 | . . . . . 11 . . . . . . 7 . . 48 Kinetic 3406 | . 164 1252 268 . . 131 . 435 1156 . . . . . . Thermal 3220 | . . 318 122 . . 21 . 113 1483 . . 115 487 196 365 Explosive 483 | . . . 483 . . . . . . . . . . . . Electromagnetic 133 | . . 121 . . . . . . . . . . . . 12 Impact . | . . . . . . . . . . . . . . . . Slashing . | . . . . . . . . . . . . . . . . Piercing . | . . . . . . . . . . . . . . . . Highest Corruption 3 | . . . . . . . 2 2 3 . . 1 1 1 3 Average Corruption 1 | . . . . . . . 2 2 2 . . 1 1 1 2 Corruption Purged . | . . . . . . . . . . . . . . . . Corruption Blocked . | . . . . . . . . . . . . . . . . Effects 63 | . . . . . . . 5 12 22 . . . 13 1 10 Message Errors 17 | . . . . . . . 1 1 9 . . . 4 . 2 Matter Fused 8 | . . . . . . . 1 1 2 . . . 2 1 1 Heat Flow Errors 11 | . . . . . . . 2 5 1 . . . 1 . 2 Energy Discharges 5 | . . . . . . . . 1 3 . . . . . 1 Parts Fused 2 | . . . . . . . . . 1 . . . . . 1 Data Loss (minor) 10 | . . . . . . . 1 1 3 . . . 4 . 1 Data Loss (major) 3 | . . . . . . . . . 1 . . . . . 2 Misfires 4 | . . . . . . . . 2 . . . . 2 . . Alerts 1 | . . . . . . . . 1 . . . . . . . Weapon Failures 2 | . . . . . . . . . 2 . . . . . . Overload Shots 2 | . . . . . . . . . . . . . . . 2 Effects 1 | . . . . . . . . . . . . . . . 1 Short Circuit 1 | . . . . . . . . . . . . . . . 1 Overflow Damage 21 | . . 10 11 . . . . . . . . . . . . Projectiles . | . . . . . . . . . . . . . . . . Explosions 21 | . . 10 11 . . . . . . . . . . . . Melee . | . . . . . . . . . . . . . . . . Knockbacks . | . . . . . . . . . . . . . . . . Impact . | . . . . . . . . . . . . . . . . Kinetic . | . . . . . . . . . . . . . . . . Secondary . | . . . . . . . . . . . . . . . . Self-Inflicted Damage 93 | . . 18 68 . . . . . . . . . . . 7 Shots 3 | . . 1 2 . . . . . . . . . . . . Rammed 10 | . . . . . . . . . . . . 1 . . 9 Targets Rammed 11 | . . . . . 1 . . . . . . 1 . . 9 Kicked 1 | . . . . . 1 . . . . . . . . . . Crushed . | . . . . . . . . . . . . . . . . Highest Temperature 476 | . 18 216 114 . . 36 212 274 476 . . 189 198 197 276 Average Temperature 99 | . 12 68 27 . . 19 94 88 148 . . 105 94 101 96 Received Heat Transfer 2761 | . 63 435 264 . . 18 . 12 1083 . . . 93 12 781 Effects 4 | . . . . . . . . . 4 . . . . . . Shutdowns 2 | . . . . . . . . . 2 . . . . . . Matter Decay 1 | . . . . . . . . . 1 . . . . . . Damage (minor) 1 | . . . . . . . . . 1 . . . . . . Siege Activations . | . . . . . . . . . . . . . . . . Robots Corrupted . | . . . . . . . . . . . . . . . . Combat Hostiles . | . . . . . . . . . . . . . . . . Parts Fried . | . . . . . . . . . . . . . . . . Impact Corruptions . | . . . . . . . . . . . . . . . . Robots Melted . | . . . . . . . . . . . . . . . . Combat Hostiles . | . . . . . . . . . . . . . . . . Parts Melted 6 | . . . 1 . . . . 1 2 . . . 1 . 1 Heat Transferred 5615 | . . 851 296 . . 111 . 259 2519 . . 161 655 285 478 Parts Sabotaged . | . . . . . . . . . . . . . . . . Parts Stolen . | . . . . . . . . . . . . . . . . Parts Stripped . | . . . . . . . . . . . . . . . . Power Chain Reactions . | . . . . . . . . . . . . . . . . Alert | -11 -10 -9 -9 -9 -8 -8 -7 -6 -6 -5 -5 -5 -5 -5 -4 ------- Run | Yrd Mat Mat Min Exi Min Mat Fac Fac Ext Fac Was Fac Upp Upp Fac Peak Influence 822 | . 100 598 302 . . 71 46 91 129 54 . 327 . . 822 Initial 476 | . . 42 232 . . . 32 22 22 24 . . . . 476 Average 120 | . 48 272 221 . . 23 45 34 45 29 . 124 . . 618 Maximum Alert Level 3 | . . 2 1 . . . . . . . . 1 . . 3 Low Security (%) 79 | 100 100 43 37 . 100 100 100 100 100 100 100 78 . . . Level 1 12 | . . 35 62 . . . . . . . . 21 . . 5 Level 2 5 | . . 20 . . . . . . . . . . . . 52 Level 3 2 | . . . . . . . . . . . . . . . 42 Level 4 . | . . . . . . . . . . . . . . . . Level 5 . | . . . . . . . . . . . . . . . . High Security . | . . . . . . . . . . . . . . . . Max Security . | . . . . . . . . . . . . . . . . Squads Dispatched 16 | . . 5 . . . . . 3 1 . . 1 . . 6 Investigation 4 | . . 2 . . . . . . 1 . . . . . 1 Extermination 4 | . . . . . . . . 3 . . . . . . 1 Reinforcement 4 | . . 3 . . . . . . . . . 1 . . . Assault 4 | . . . . . . . . . . . . . . . 4 Garrison . | . . . . . . . . . . . . . . . . Intercept . | . . . . . . . . . . . . . . . . Searches Triggered . | . . . . . . . . . . . . . . . . Construction Impeded . | . . . . . . . . . . . . . . . . Haulers Reinforced . | . . . . . . . . . . . . . . . . Active Scanning Responses . | . . . . . . . . . . . . . . . . Cargo Convoy Interrupts . | . . . . . . . . . . . . . . . . Stealth | -11 -10 -9 -9 -9 -8 -8 -7 -6 -6 -5 -5 -5 -5 -5 -4 --------- Run | Yrd Mat Mat Min Exi Min Mat Fac Fac Ext Fac Was Fac Upp Upp Fac Distress Signals 9 | . . 5 1 . . 1 . . 1 1 . . . . . Communications Jammed . | . . . . . . . . . . . . . . . . Distress Signals . | . . . . . . . . . . . . . . . . Times Spotted 173 | . 7 38 28 . . 4 . 11 15 . . 3 16 9 42 Peak Tracking Total 20 | . 4 6 17 . . 3 . 4 4 2 . 2 8 5 20 Tactical Retreats 12 | . 1 3 3 . . . . . 3 1 . . . . 1 Traps | -11 -10 -9 -9 -9 -8 -8 -7 -6 -6 -5 -5 -5 -5 -5 -4 ------- Run | Yrd Mat Mat Min Exi Min Mat Fac Fac Ext Fac Was Fac Upp Upp Fac Traps Triggered 6 | . . 2 . . . . 1 . 1 1 . . . . 1 Indirectly . | . . . . . . . . . . . . . . . . Trap Hack Attempts . | . . . . . . . . . . . . . . . . Triggered . | . . . . . . . . . . . . . . . . Disarmed . | . . . . . . . . . . . . . . . . Reprogrammed . | . . . . . . . . . . . . . . . . Reused . | . . . . . . . . . . . . . . . . Traps Extracted . | . . . . . . . . . . . . . . . . Installed . | . . . . . . . . . . . . . . . . Triggered . | . . . . . . . . . . . . . . . . Machines | -11 -10 -9 -9 -9 -8 -8 -7 -6 -6 -5 -5 -5 -5 -5 -4 ---------- Run | Yrd Mat Mat Min Exi Min Mat Fac Fac Ext Fac Was Fac Upp Upp Fac Machines Disabled 8 | . . 2 . . . 1 . . . . . 1 . . 4 Max in Single Turn 2 | . . 2 . . . 1 . . . . . . . . 2 Garrison Access 1 | . . . . . . . . . . . . 1 . . . Machines Repaired . | . . . . . . . . . . . . . . . . Machines Dismantled . | . . . . . . . . . . . . . . . . Machines Sabotaged . | . . . . . . . . . . . . . . . . Overloaded Fab Kills . | . . . . . . . . . . . . . . . . Hacking | -11 -10 -9 -9 -9 -8 -8 -7 -6 -6 -5 -5 -5 -5 -5 -4 --------- Run | Yrd Mat Mat Min Exi Min Mat Fac Fac Ext Fac Was Fac Upp Upp Fac Machines Accessed 23 | . 1 4 . . . 1 2 2 4 1 . 5 1 . 2 Terminals 20 | . 1 4 . . . 1 2 2 4 1 . 3 . . 2 Fabricators . | . . . . . . . . . . . . . . . . Repair Stations 1 | . . . . . . . . . . . . 1 . . . Recycling Units . | . . . . . . . . . . . . . . . . Scanalyzers . | . . . . . . . . . . . . . . . . Garrison Access 1 | . . . . . . . . . . . . 1 . . . Total Hacks 49 | . 3 8 . . . 1 5 7 6 1 . 11 1 . 6 Successful 27 | . 3 4 . . . . 2 4 3 1 . 6 1 . 3 Failed 21 | . . 4 . . . 1 3 3 3 . . 4 . . 3 Catastrophic 3 | . . . . . . 1 1 . 1 . . . . . . Database Lockouts 1 | . . . . . . . . . . . . 1 . . . Manual 15 | . . 3 . 1 . 1 3 1 1 . . 2 . . 3 Terminals 45 | . 3 8 . . . 1 5 7 6 1 . 8 . . 6 Fabricators . | . . . . . . . . . . . . . . . . Repair Stations 2 | . . . . . . . . . . . . 2 . . . Recycling Units . | . . . . . . . . . . . . . . . . Scanalyzers . | . . . . . . . . . . . . . . . . Garrison Access 1 | . . . . . . . . . . . . 1 . . . Terminal Hacks 26 | . 3 4 . . . . 2 4 3 1 . 5 1 . 3 Record 9 | . . . . . . . 1 1 2 1 . 3 . . 1 Open Door 2 | . . . . . . . . . 1 . . . 1 . . Open DSF 1 | . . . . . . . . . . . . 1 . . . Alert Level 5 | . 1 1 . . . . 1 1 . . . . . . 1 Unreport Threat 2 | . . . . . . . . . . . . 1 . . 1 Locate Traps 3 | . 1 1 . . . . . 1 . . . . . . . Surveillance Status 1 | . 1 . . . . . . . . . . . . . . Assault Status 1 | . . 1 . . . . . . . . . . . . . Hauler Manifests 1 | . . . . . . . . 1 . . . . . . . Zone Layout 1 | . . 1 . . . . . . . . . . . . . Fabricator Hacks . | . . . . . . . . . . . . . . . . Repair Station Hacks . | . . . . . . . . . . . . . . . . Recycling Unit Hacks . | . . . . . . . . . . . . . . . . Scanalyzer . | . . . . . . . . . . . . . . . . Garrison Access Hacks 1 | . . . . . . . . . . . . 1 . . . Seal Access 1 | . . . . . . . . . . . . 1 . . . Unauthorized Hacks . | . . . . . . . . . . . . . . . . Terminals . | . . . . . . . . . . . . . . . . Fabricators . | . . . . . . . . . . . . . . . . Repair Stations . | . . . . . . . . . . . . . . . . Recycling Units . | . . . . . . . . . . . . . . . . Scanalyzers . | . . . . . . . . . . . . . . . . Garrison Access . | . . . . . . . . . . . . . . . . Data Cores Recovered . | . . . . . . . . . . . . . . . . Used . | . . . . . . . . . . . . . . . . Hacking Detections 18 | . . 3 . . . 1 2 2 4 1 . 3 . . 2 Full Trace Events 1 | . . . . . . . . . . . . . . . 1 Feedback Events . | . . . . . . . . . . . . . . . . Feedback Blocked . | . . . . . . . . . . . . . . . . Robot Schematics Acquired . | . . . . . . . . . . . . . . . . Robots Built . | . . . . . . . . . . . . . . . . Authchips . | . . . . . . . . . . . . . . . . Time . | . . . . . . . . . . . . . . . . Total Robot Build Rating . | . . . . . . . . . . . . . . . . Part Schematics Acquired . | . . . . . . . . . . . . . . . . Parts Built . | . . . . . . . . . . . . . . . . Authchips . | . . . . . . . . . . . . . . . . Time . | . . . . . . . . . . . . . . . . Total Part Build Rating . | . . . . . . . . . . . . . . . . Parts Repaired . | . . . . . . . . . . . . . . . . Time . | . . . . . . . . . . . . . . . . Parts Recycled . | . . . . . . . . . . . . . . . . Recycled Matter . | . . . . . . . . . . . . . . . . Retrieved Matter . | . . . . . . . . . . . . . . . . Retrieved Components . | . . . . . . . . . . . . . . . . Parts Scanalyzed . | . . . . . . . . . . . . . . . . Part Schematics Acquired . | . . . . . . . . . . . . . . . . Parts Damaged . | . . . . . . . . . . . . . . . . Bothacking | -11 -10 -9 -9 -9 -8 -8 -7 -6 -6 -5 -5 -5 -5 -5 -4 ------------ Run | Yrd Mat Mat Min Exi Min Mat Fac Fac Ext Fac Was Fac Upp Upp Fac Used RIF Installer . | . . . . . . . . . . . . . . . . Robots Hacked . | . . . . . . . . . . . . . . . . Non-combat . | . . . . . . . . . . . . . . . . Combat . | . . . . . . . . . . . . . . . . Robot Hacks Applied . | . . . . . . . . . . . . . . . . Relay Couplers Released . | . . . . . . . . . . . . . . . . Fabnet Peak Effective % . | . . . . . . . . . . . . . . . . Robots Rewired . | . . . . . . . . . . . . . . . . Allies Hacked 2 | . . . . . . . . . . . . . 1 . 1 Hacks Repelled . | . . . . . . . . . . . . . . . . Allies | -11 -10 -9 -9 -9 -8 -8 -7 -6 -6 -5 -5 -5 -5 -5 -4 -------- Run | Yrd Mat Mat Min Exi Min Mat Fac Fac Ext Fac Was Fac Upp Upp Fac Total Allies 21 | . . . 1 . . . . . . . 20 . . . . Largest Group 20 | . . . 1 . . . . . . . 20 19 16 9 7 Highest-Rated Group 830 | . . . 31 . . . . . . . 830 784 639 373 312 Highest-Rated Ally 50 | . . . 31 . . . . . . . 50 50 50 46 46 Total Orders . | . . . . . . . . . . . . . . . . Ally Attacks 238 | . . . 2 . . . . . . . . 36 104 49 47 Total Damage 6980 | . . . 22 . . . . . . . . 969 3293 1293 1403 Kills 44 | . . . . . . . . . . . . 7 22 7 8 Allies Corrupted 1 | . . . . . . . . . . . . . 1 . . Allies Melted 1 | . . . . . . . . . . . . . 1 . . Intel | -11 -10 -9 -9 -9 -8 -8 -7 -6 -6 -5 -5 -5 -5 -5 -4 ------- Run | Yrd Mat Mat Min Exi Min Mat Fac Fac Ext Fac Was Fac Upp Upp Fac Robot Analysis Total . | . . . . . . . . . . . . . . . . Derelict Logs Recovered 3 | . . . . . . . . . . . . . 3 . . Drone Launches . | . . . . . . . . . . . . . . . . Drone Recoveries . | . . . . . . . . . . . . . . . . Exploration | -11 -10 -9 -9 -9 -8 -8 -7 -6 -6 -5 -5 -5 -5 -5 -4 ------------- Run | Yrd Mat Mat Min Exi Min Mat Fac Fac Ext Fac Was Fac Upp Upp Fac Turns Passed 10728 | 62 191 1146 641 802 388 344 382 1771 1005 439 621 781 1446 253 456 Spaces Moved 5772 | 46 121 511 325 581 322 160 178 703 548 167 317 463 874 135 321 Core 116 | 6 . . . . . . . . . . . . . . 110 Treads 2080 | . . 268 . . . . . . 8 . 121 463 874 135 211 Legs 3576 | 40 121 243 325 581 322 160 178 703 540 167 196 . . . . Wheels . | . . . . . . . . . . . . . . . . Hover . | . . . . . . . . . . . . . . . . Flight . | . . . . . . . . . . . . . . . . Fastest Speed 50 | 50 120 120 120 120 120 120 120 120 120 190 160 160 160 160 50 Average Speed 145 | 114 120 158 172 136 120 121 120 129 124 190 191 160 160 160 122 Slowest Speed 260 | 120 120 260 260 190 120 190 120 190 260 190 260 160 160 160 240 Overloaded Moves . | . . . . . . . . . . . . . . . . Propulsion Burnouts . | . . . . . . . . . . . . . . . . Robots Hopped . | . . . . . . . . . . . . . . . . Cave-ins Triggered . | . . . . . . . . . . . . . . . . Exploration Rate (%) 40 | 4 26 62 67 92 70 19 6 14 53 4 97 11 98 21 7 Regions Visited 15 Branch Regions 6 Pre-discovered Areas . | . . . . . . . . . . . . . . . . Known Exits Taken . | . . . . . . . . . . . . . . . . Unknown Exits Taken 13 | 1 1 1 1 1 1 1 1 1 1 . . 1 1 1 . Scrap Searched 6 | . . . 1 . . . . . . . . . 4 1 . Spaces Dug . | . . . . . . . . . . . . . . . . Terrain Destroyed 71 | . . . 53 . . 1 . 5 5 . . . 3 1 3 Melee . | . . . . . . . . . . . . . . . . Projectile 19 | . . . 1 . . 1 . 5 5 . . . 3 1 3 AOE 52 | . . . 52 . . . . . . . . . . . . Terrain Rammed . | . . . . . . . . . . . . . . . . Walls Destroyed . | . . . . . . . . . . . . . . . . Machines Disabled . | . . . . . . . . . . . . . . . . Actions | -11 -10 -9 -9 -9 -8 -8 -7 -6 -6 -5 -5 -5 -5 -5 -4 --------- Run | Yrd Mat Mat Min Exi Min Mat Fac Fac Ext Fac Was Fac Upp Upp Fac Total 7708 | 52 139 713 373 589 323 311 346 1562 758 290 330 498 899 166 359 Wait 1523 | . . 58 14 . . 138 166 835 117 119 4 28 15 27 2 Move 5758 | 45 120 510 324 580 321 159 177 702 547 167 316 462 873 134 321 Hop . | . . . . . . . . . . . . . . . . Pick Up 57 | 1 2 29 4 . . 4 . 4 1 1 6 2 . . 3 Fast Attach 34 | 6 . 6 3 3 . . 1 2 9 1 2 . . . 1 Attach 39 | . . 9 2 1 1 3 1 4 9 2 . . . 1 6 Detach 9 | . . . . 3 . 3 . 1 1 . . . . . 1 Swap 25 | . . 12 1 . . . . 4 2 . 2 2 . . 2 Drop 36 | . . 17 1 2 . 3 1 5 2 . . 1 . 1 3 Fire 216 | . 17 72 24 . . 1 . 5 70 . . 2 11 3 11 Melee . | . . . . . . . . . . . . . . . . Ram 6 | . . . . . . . . . . . . . . . 6 Kick 1 | . . . . . 1 . . . . . . . . . . Crush 4 | . . . . . . . . . . . . 1 . . 3 Escape Stasis . | . . . . . . . . . . . . . . . . Rewire . | . . . . . . . . . . . . . . . . Trap . | . . . . . . . . . . . . . . . . Miscellaneous . | . . . . . . . . . . . . . . . . Route ------- -11/Scrapyard -10/Materials -9/Materials -9/Mines -9/Exiles (discovered 2 exits: [*Min x2]) -8/Mines -8/Materials -7/Factory -6/Factory -6/Extension -5/Factory -5/Waste -5/Factory -5/Upper Caves -5/Upper Caves -4/Factory History --------- Turn | Location | Event 7 | -11/Scrapyard | Discovered new exit (range 16) 63 | -11/Scrapyard | Entered Materials 226 | -10/Materials | Discovered new exit (range 15) 254 | -10/Materials | Entered another Materials area 254 | -9/Materials | Evolved 2 slots: Propulsion x2 311 | -9/Materials | Build established: Mutant 863 | -9/Materials | Build established: Scavenger-Mutant 1034 | -9/Materials | Lost 3 parts (2n1u) 1232 | -9/Materials | Discovered new exit (range 15) 1400 | -9/Materials | Entered Mines 1496 | -9/Mines | Received a Mining Laser from a helpful Derelict 1580 | -9/Mines | Assembled infested the area 1620 | -9/Mines | Core integrity fell below 50% 1631 | -9/Mines | Found a damaged Exp. Sensor Array with a note attached 1634 | -9/Mines | Found Prototype Device 1635 | -9/Mines | Identified Exp. Sensor Array 1646 | -9/Mines | Core integrity fell below 20% 1678 | -9/Mines | Lost 4 parts (3n1w) 1679 | -9/Mines | Destroyed 10 combat bots 2034 | -9/Mines | Deemed a non-threat by the Exiles lab entrance 2034 | -9/Mines | Discovered new exit (range 5) 2041 | -9/Mines | Entered Exiles 2076 | -9/Exiles | Discovered new exit (range 15) 2102 | -9/Exiles | Met 8R-AWN 2138 | -9/Exiles | Met EX-HEX 2199 | -9/Exiles | Met EX-BIN 2247 | -9/Exiles | Aligned with FarCom system 2249 | -9/Exiles | Given EX-Vault access code 2302 | -9/Exiles | Opened EX-Vault 2315 | -9/Exiles | Found Prototype Ballistic Gun 2315 | -9/Exiles | Identified AWS/Gauss 2323 | -9/Exiles | Found Prototype Device 2323 | -9/Exiles | Identified PSU Rigger 2353 | -9/Exiles | Warned to stay clear of 0b10 Research branches 2386 | -9/Exiles | Met EX-DEC 2452 | -9/Exiles | Discovered new exit (range 11) 2588 | -9/Exiles | Visited The Gauntlet 2843 | -9/Exiles | Left Exiles lab with AWS/Gauss 2843 | -9/Exiles | Entered Mines 3225 | -8/Mines | Discovered new exit (range 7) 3231 | -8/Mines | Entered Materials 3231 | -8/Materials | Evolved 2 slots: Utility x1, Weapon x1 3525 | -8/Materials | Discovered new exit (range 15) 3575 | -8/Materials | Entered Factory 3575 | -7/Factory | Evolved 2 slots: Power x1, Utility x1 3934 | -7/Factory | Discovered new exit (range 7) 3957 | -7/Factory | Entered another Factory area 3957 | -6/Factory | Evolved 2 slots: Utility x2 5557 | -6/Factory | Build established: Tank 5668 | -6/Factory | Discovered new exit (range 12) 5728 | -6/Factory | Entered Extension 5907 | -6/Extension | Spotted B-75 Beast 6000 | -6/Extension | Build established: Hacker-Tank 6523 | -6/Extension | Destroyed B-75 Beast 6536 | -6/Extension | Spotted B-75 Beast 6619 | -6/Extension | Lost 10 parts (1p2n2u5w) 6636 | -6/Extension | Destroyed B-75 Beast 6661 | -6/Extension | Core integrity fell below 50% 6678 | -6/Extension | Disrupted transfer network 6708 | -6/Extension | Lost 7 parts (4n2u1w) 6729 | -6/Extension | Discovered new exit (range 3) 6733 | -6/Extension | Entered Factory 6733 | -5/Factory | Evolved 2 slots: Propulsion x1, Utility x1 6982 | -5/Factory | Build established: Scavenger-Mutant 7172 | -5/Factory | Sucked down chute 7172 | -5/Factory | Entered Waste 7173 | -5/Waste | Joined by Warlord forces that had cleared the area 7377 | -5/Waste | Build established: Scavenger-Gunner 7427 | -5/Waste | Discovered new exit (range 16) 7793 | -5/Waste | Entered Factory 7793 | -5/Factory | Accompanied by 19 allies 8246 | -5/Factory | Central database locked down 8545 | -5/Factory | Discovered new exit (range 10) 8574 | -5/Factory | Entered Upper Caves 8574 | -5/Upper Caves | Accompanied by 16 allies 8610 | -5/Upper Caves | Learned Factory terminal intel 8660 | -5/Upper Caves | Encountered a Warlord checkpoint 8786 | -5/Upper Caves | Attracted the attention of an 0b10 outpost 8828 | -5/Upper Caves | Lost 3 allies 8945 | -5/Upper Caves | Spotted B-75 Beast 8955 | -5/Upper Caves | Destroyed B-75 Beast 9454 | -5/Upper Caves | Attracted the attention of an 0b10 checkpoint 9768 | -5/Upper Caves | Discovered new exit (range 9) 9821 | -5/Upper Caves | Learned Factory non-interactive machine intel 10020 | -5/Upper Caves | Entered another Upper Caves area 10020 | -5/Upper Caves | Accompanied by 9 allies 10231 | -5/Upper Caves | Discovered new exit (range 8) 10273 | -5/Upper Caves | Entered Factory 10273 | -4/Factory | Accompanied by 7 allies 10273 | -4/Factory | Evolved 2 slots: Propulsion x1, Utility x1 10274 | -4/Factory | Loaded intel: 225 non-interactive machine locations 10275 | -4/Factory | Loaded intel: 26 terminal locations 10572 | -4/Factory | First assault squad dispatched 10618 | -4/Factory | Lost 5 allies 10667 | -4/Factory | Core integrity fell below 50% 10694 | -4/Factory | Lost 16 parts (2p4n6u4w) 10723 | -4/Factory | Core integrity fell below 20% 10729 | -4/Factory | Destroyed by G-67 Veteran with Field Laser Last Messages --------------- 10660_ Dropped Lrg. Storage Unit. 10660_ Quantum Rifle destroyed. 10660_ Adv. Plasma Cannon destroyed. 10660_ Critical hit (Burn: +37). 10661_ U-05 Engineer lays Concrete. 10661_ K-01 Serf collects debris. 10662_ U-05 Engineer lays Concrete. 10663_ U-05 Engineer builds a Wall. 10663_ Imp. Coolant Injector destroyed. 10666_ U-05 Engineer lays Concrete. 10702_ NGZMHAQQ=7LTC J/QPCT9D|#YL 10712_ Adv. Hacking Suite destroyed. 10713_ Variable Charge Gun broken. 10713_ Overload: Short circuit. 10715_ Dropped Broken Variable Charge Gun. 10723_ Slammed into G-67 Veteran. 10726_ Construction Platform disabled. 10727_ Critical hit (Burn: +37). 10727_ Slammed into G-73 Enforcer. 10728_ Slammed into G-67 Veteran. Map ----- +----------------------------------------------------+ | ??# #????????????????????# #??" """ | | #######+## #????????????????????# #?? """ | | # # #????????????????????# #?"" """ | | # # #????????????????????# #? ??? | | #"""" # +????????????????????# #?####??? | | #"""" # #????????????????????# #???????? | | #"""" # #????????????????????#!#???????? | | #"""" # #????????????????????#*#???????? | | #"""" # #????????###?????????#%#???????? | | #"""" # ##########"####??????# #???????? | | #"""" | # "" !#??????#[#???????? | | # + "Y #??????# #???????? | | #"""" # """ #??????# #???????? | | #"""" # =% """ ########+########? | | #"""" # %% * """ # !%C #? | | #"""" #???#### =*/! # %!g] #? | | #"""" #??????# =% """ # """" """" #? | | #"""" #??????# = """ # i """" """" #? | | #"""" ] ######## %"" # """" """" #? | | # / !!! + """" """" #? | | ################# !! ! # """" """" #? | | ????????????????# !! # """" """" ??? | | ??????????????########## # """" """" ???? | | ??????????????# %g% !# # ???? | | ??????????????# """ glg# ##############???? | | ??????????????#g""""g%@g #????????????????? | | ??????????????# """"ggg# #????????????????? | | ??????????????# """" ! # #????????????????? | | ??????????????#g"""" # #????????????????? | | ??????????????# """" # #????????????????? | | ??????????????# """" # #????????????????? | | ??????????????# g !# #????????????????? | | ??????????????########## +????????????????? | | ???????????????????????# #????????????????? | | ???????????????????????# #????????????????? | | ????????????""""?""""??# #????????????????? | | ????????????""""?""""??# #????????????????? | | ????????????""""?""""??? #????????????????? | | ????????????""""?""""??? ?????????????????? | | ????????????""""?""""??? ???????????????????? | | ????????????""""?""""??????????w??????"""?"""?" | | ??????????????????????????????????????"""?"""?" | | ??????????????????????????????????????"""?"""?" | | ??????????????????????????????????????????????? | | ??????????????????????????????????????????????? | | ??????????????????????????????????????????????? | | ??????????????????????????????????????????????? | | ??????????????????????????????????????????????? | | ???????????????????"""""""""??????????????????? | | ??????????????????????????????????????????????? | +----------------------------------------------------+ Best States ------------- Heat Dissipation 62 Coolant Potential 80 Energy Generation 35 Energy Capacity 535 Matter Stores 300 Matter Capacity 300 Sight Range 16 Robot Scan Range 20 Terrain Scan Density 10 Additional Mass Support 6 Armor Coverage 300 Weapon Shielding 66 Evasion (%) 55 Targeting Accuracy 18 Recoil Reduction 4 Offensive Hacking 26 Item Schematics ----------------- None Robot Schematics ------------------ None Fabricated ------------ Nothing Alien Tech Used ----------------- None Achievements -------------- Close Call I Survived The Infestation Origins Quick And Dirty Shopping List We Are Legion Challenges ------------ None Game ------ Seed PropulsionMiningSink Manual? 0 Play Time 01:38:58 Cumulative 14.0 hours Start 2024.04.19 @ 00:21:37 End 2024.04.19 @ 02:08:27 Sessions 1 Manual Loads 0 Difficulty Rogue Special Mode None Game No. 13 Rogue 13 Adventurer 0 Explorer 0 Win Type - Total 0 Types 0/0/0/0/0/0/0/0/0 Lore% 23 Gallery% 19 Achievement% 22 Wizard Run 0 Options --------- Layout 1 ASCII 0 Keyboard 0 Movement Arrows Keybinds 0 Fullscreen 1 Font 24/Smallcaps Map View 50x35 Zoom Use 0% Tactical HUD 1 Map Filters NONE Filters NONE Steam 1 RUN: 5a87618e-d91b-4d91-bfa0-59ef80bd1af6